fUST/lending_fUST_20250101
["ID","MTS","AMOUNT","RATE_DAILY","PERIOD"]
[347378953,1735746653697,-500.0,0.00019452,3]
[347378954,1735746653706,-500.0,0.00019452,3]
[347378955,1735746653715,-501.8843824,0.00019452,3]
[347378956,1735746653725,-500.0,0.00019452,3]
[347378957,1735746653734,-572.31,0.00019452,3]
[347378958,1735746653744,-500.0,0.00019452,3]
[347378959,1735746653753,-500.0,0.00019452,3]
[347378960,1735746653762,-501.95560623,0.00019452,3]
[347378961,1735746653771,-508.68865927,0.00019452,3]
[347378962,1735746653782,-500.0,0.00019452,3]
[347378963,1735746653791,-500.0,0.00019452,3]
[347378964,1735746653801,-500.0,0.00019452,3]
[347378965,1735746653810,-500.0,0.00019452,3]
[347378966,1735746653820,-437.5895249,0.00019452,3]
[347378967,1735746653829,-503.6743816,0.00019452,3]
[347378968,1735746653838,-567.17565745,0.00019452,3]
[347378969,1735746653847,-500.0,0.00019452,3]
[347378970,1735746653856,-503.74540203,0.00019452,3]
[347378971,1735746653866,-500.0,0.00019452,3]
[347378972,1735746653875,-156.8975605,0.00019452,3]
[347378973,1735746653884,-500.0,0.00019452,3]
[347378974,1735746653894,-519.74645103,0.00019452,3]
[347378975,1735746653903,-500.0,0.00019452,2]
[347378976,1735746653913,-500.0,0.00019452,3]
[347378977,1735746653923,-500.0,0.00019452,3]
[347378978,1735746653932,-500.0,0.00019452,3]
[347378979,1735746653943,-500.0,0.00019452,3]
[347378980,1735746653953,-500.0,0.00019452,2]
[347378981,1735746653962,-500.0,0.00019452,3]
[347378982,1735746653971,-500.0,0.00019452,3]
[347378983,1735746653980,-462.70797693,0.00019452,3]
[347378984,1735746653989,-500.0,0.00019452,3]
[347378985,1735746653999,-500.0,0.00019452,3]
[347378986,1735746654008,-500.0,0.00019452,3]
[347378987,1735746654018,-500.0,0.00019452,3]
[347378988,1735746654027,-500.0,0.00019452,3]
[347378989,1735746654037,-500.0,0.00019452,3]
[347378990,1735746654046,-500.0,0.00019452,3]
[347378991,1735746654057,-500.0,0.00019452,3]
[347378992,1735746654066,-227.852574,0.00019452,2]
[347378993,1735746654076,-500.0,0.00019452,3]
[347378994,1735746654091,-500.0,0.00019452,3]
[347378995,1735746654101,-227.852574,0.00019452,2]
[347378996,1735746654111,-500.0,0.00019452,3]
[347378997,1735746654121,-500.0,0.00019452,3]
[347378998,1735746654131,-644.24592478,0.00019452,3]
[347378999,1735746654140,-611.29091821,0.00019452,3]
[347379000,1735746654149,-500.0,0.00019452,3]
[347379001,1735746654159,-500.0,0.00019452,3]
[347379002,1735746654169,-500.0,0.00019452,3]
[347379003,1735746654179,-268.7287307,0.00019452,3]
[347379004,1735746654188,-500.0,0.00019452,3]
[347379005,1735746654197,-500.0,0.00019452,3]
[347379006,1735746654209,-500.0,0.00019452,3]
[347379007,1735746654219,-500.0,0.00019452,3]
[347379008,1735746654229,-503.15770444,0.00019452,3]
[347379009,1735746654239,-500.0,0.00019452,3]
[347379010,1735746654249,-500.0,0.00019452,3]
[347379011,1735746654259,-500.0,0.00019452,3]
[347379012,1735746654269,-1092.23,0.00019452,3]
[347379013,1735746654279,-500.0,0.00019452,3]
[347379014,1735746654288,-166.74544296,0.00019452,3]
[347379015,1735746654298,-503.1634418,0.00019452,3]
[347379016,1735746654307,-500.0,0.00019452,3]
[347379017,1735746654317,-500.0,0.00019452,3]
[347379018,1735746654326,-515.21708486,0.00019452,3]
[347379019,1735746654336,-500.0,0.00019452,3]
[347379020,1735746654345,-500.0,0.00019452,3]
[347379021,1735746654354,-500.0,0.00019452,3]
[347379022,1735746654364,-500.0,0.00019452,3]
[347379023,1735746654373,-500.0,0.00019452,3]
[347379024,1735746654382,-151.0,0.00019452,2]
[347379025,1735746654391,-500.0,0.00019452,3]
[347379026,1735746654401,-151.0,0.00019452,2]
[347379027,1735746654410,-504.17019326,0.00019452,3]
[347379028,1735746654419,-359.25052094,0.00019452,3]
[347379029,1735746654428,-701.62,0.00019452,3]
[347379030,1735746654438,-500.0,0.00019452,3]
[347379031,1735746654447,-500.0,0.00019452,3]
[347379032,1735746654456,-500.0,0.00019452,3]
[347379033,1735746654466,-500.0,0.00019452,3]
[347379034,1735746654475,-500.0,0.00019452,3]
[347379035,1735746654484,-500.0,0.00019452,3]
[347379036,1735746654493,-500.0,0.00019452,3]
[347379037,1735746654503,-500.0,0.00019452,3]
[347379038,1735746654512,-500.0,0.00019452,3]
[347379039,1735746654521,-500.0,0.00019452,3]
[347379040,1735746654531,-500.0,0.00019452,3]
[347379041,1735746654540,-508.53714285,0.00019452,3]
[347379042,1735746654549,-151.0,0.00019452,2]
[347379043,1735746654560,-500.0,0.00019452,3]
[347379044,1735746654569,-500.0,0.00019452,3]
[347379045,1735746654578,-151.0,0.00019452,2]
[347379046,1735746654588,-151.0,0.00019452,2]
[347379047,1735746654597,-835.67,0.00019452,3]
[347379048,1735746654703,-500.0,0.00019452,3]
[347379049,1735746654713,-336.45968115,0.00019452,3]
[347379050,1735746654723,-500.0,0.00019452,3]
[347379051,1735746654733,-500.0,0.00019452,3]
[347379052,1735746654742,-307.68242287,0.00019452,3]
[347379053,1735746654752,-500.0,0.00019452,3]
[347379054,1735746654761,-500.0,0.00019452,3]
[347379055,1735746654770,-500.0,0.00019452,3]
[347379056,1735746654780,-502.20902357,0.00019452,3]
[347379057,1735746654790,-151.0,0.00019452,2]
[347379058,1735746654800,-501.08252883,0.00019452,3]
[347379059,1735746654809,-763.25,0.00019452,3]
[347379060,1735746654818,-500.0,0.00019452,3]
[347379061,1735746654828,-500.0,0.00019452,3]
[347379062,1735746654837,-523.78,0.00019452,3]
[347379063,1735746654846,-500.0,0.00019452,3]
[347379064,1735746654855,-500.0,0.00019452,3]
[347379065,1735746654865,-500.0,0.00019452,3]
[347379066,1735746654875,-500.0,0.00019452,3]
[347379067,1735746654885,-500.0,0.00019452,3]
[347379068,1735746654894,-151.0,0.00019452,2]
[347379069,1735746654903,-151.0,0.00019452,2]
[347379070,1735746654912,-3824.47,0.00019452,2]
[347379071,1735746654923,-261.67804982,0.00019452,3]
[347379072,1735746654932,-500.0,0.00019452,3]
[347379073,1735746654941,-957.93,0.00019452,3]
[347379074,1735746654953,-227.19594912,0.00019452,3]
[347379075,1735746654964,-500.0,0.00019452,3]
[347379076,1735746654974,-500.0,0.00019452,3]
[347379077,1735746654987,-500.0,0.00019452,3]
[347379078,1735746655000,-500.0,0.00019452,3]
[347379079,1735746655009,-500.0,0.00019452,3]
[347379080,1735746655019,-1327.49,0.00019452,3]
[347379081,1735746655028,-500.0,0.00019452,3]
[347379082,1735746655038,-500.0,0.00019452,3]
[347379083,1735746655047,-500.0,0.00019452,3]
[347379084,1735746655056,-500.0,0.00019452,3]
[347379085,1735746655066,-500.0,0.00019452,3]
[347379086,1735746655075,-969.66,0.00019452,3]
[347379087,1735746655088,-558.83982506,0.00019452,3]
[347379088,1735746655097,-501.99199146,0.00019452,3]
[347379089,1735746655106,-500.0,0.00019452,3]
[347379090,1735746655117,-500.0,0.00019452,3]
[347379091,1735746655129,-500.0,0.00019452,3]
[347379092,1735746655139,-501.59756044,0.00019452,3]
[347379093,1735746655149,-500.0,0.00019452,3]
[347379094,1735746655160,-501.13281902,0.00019452,3]
[347379095,1735746655170,-500.0,0.00019452,3]
[347379096,1735746655179,-501.98395574,0.00019452,3]
[347379097,1735746655189,-500.0,0.00019452,3]
[347379098,1735746655198,-500.0,0.00019452,3]
[347379099,1735746655208,-500.0,0.00019452,3]
[347379100,1735746655218,-500.0,0.00019452,3]
[347379101,1735746655228,-504.99,0.00019452,3]
[347379102,1735746655237,-500.0,0.00019452,3]
[347379103,1735746655246,-500.0,0.00019452,3]
[347379104,1735746655256,-500.0,0.00019452,3]
[347379105,1735746655266,-510.4039858,0.00019452,3]
[347379106,1735746655276,-502.88249418,0.00019452,3]
[347379107,1735746655285,-501.22868384,0.00019452,3]
[347379108,1735746655295,-500.0,0.00019452,3]
[347379109,1735746655304,-500.0,0.00019452,3]
[347379110,1735746655313,-500.0,0.00019452,3]
[347379111,1735746655323,-500.0,0.00019452,3]
[347379112,1735746655332,-500.0,0.00019452,3]
[347379113,1735746655342,-505.22632165,0.00019452,3]
[347379114,1735746655351,-500.0,0.00019452,3]
[347379115,1735746655362,-502.33611662,0.00019452,3]
[347379116,1735746655371,-601.21,0.00019452,3]
[347379117,1735746655381,-500.0,0.00019452,3]
[347379118,1735746655390,-675.36,0.00019452,3]
[347379119,1735746655399,-500.0,0.00019452,3]
[347379120,1735746655408,-500.0,0.00019452,3]
[347379121,1735746655418,-500.0,0.00019452,3]
[347379122,1735746655428,-500.0,0.00019452,3]
[347379123,1735746655436,-2539.2,0.00019452,3]
[347379124,1735746655446,-500.0,0.00019452,3]
[347379125,1735746655456,-162.95126395,0.00019452,3]
[347379126,1735746655466,-500.0,0.00019452,3]
[347379127,1735746655476,-500.0,0.00019452,3]
[347379128,1735746655485,-500.0,0.00019452,3]
[347379129,1735746655494,-979.04,0.00019452,3]
[347379130,1735746655503,-500.0,0.00019452,3]
[347379131,1735746655512,-500.0,0.00019452,3]
[347379132,1735746655522,-500.0,0.00019452,3]
[347379133,1735746655531,-500.0,0.00019452,3]
[347379134,1735746655541,-7556.62,0.00019452,3]
[347379135,1735746655550,-500.55749107,0.00019452,3]
[347379136,1735746655560,-502.96038842,0.00019452,3]
[347379137,1735746655569,-500.0,0.00019452,3]
[347379138,1735746655578,-151.0,0.00019452,2]
[347379139,1735746655587,-500.0,0.00019452,3]
[347379140,1735746655596,-500.0,0.00019452,3]
[347379141,1735746655605,-151.0,0.00019452,2]
[347379142,1735746655615,-500.0,0.00019452,3]
[347379143,1735746655624,-151.0,0.00019452,2]
[347379144,1735746655633,-500.0,0.00019452,3]
[347379145,1735746655642,-500.0,0.00019452,3]
[347379146,1735746655651,-500.0,0.00019452,3]
[347379147,1735746655661,-800.57,0.00019452,3]
[347379148,1735746655670,-500.0,0.00019452,3]
[347379149,1735746655680,-500.0,0.00019452,3]
[347379150,1735746655689,-500.0,0.00019452,3]
[347379151,1735746655699,-369.834557,0.00019452,2]
[347379152,1735746655708,-500.0,0.00019452,3]
[347379153,1735746655717,-369.834557,0.00019452,2]
[347379154,1735746655727,-500.0,0.00019452,3]
[347379155,1735746655736,-500.0,0.00019452,3]
[347379156,1735746655745,-1195.09,0.00019452,3]
[347379157,1735746655754,-500.0,0.00019452,3]
[347379158,1735746655763,-500.0,0.00019452,3]
[347379159,1735746655772,-500.0,0.00019452,3]
[347379160,1735746655781,-616.95,0.00019452,3]
[347379161,1735746655790,-500.0,0.00019452,3]
[347379162,1735746655801,-500.0,0.00019452,3]
[347379163,1735746655810,-500.85473831,0.00019452,3]
[347379164,1735746655819,-500.0,0.00019452,3]
[347379165,1735746655829,-500.0,0.00019452,3]
[347379166,1735746655838,-500.0,0.00019452,3]
[347379167,1735746655848,-500.0,0.00019452,3]
[347379168,1735746655857,-500.0,0.00019452,3]
[347379169,1735746655867,-503.62403955,0.00019452,3]
[347379170,1735746655876,-500.0,0.00019452,3]
[347379171,1735746655885,-508.04202133,0.00019452,3]
[347379172,1735746655894,-500.0,0.00019452,3]
[347379173,1735746655904,-1059.81,0.00019452,3]
[347379174,1735746655913,-500.0,0.00019452,3]
[347379175,1735746655924,-500.0,0.00019452,3]
[347379176,1735746655933,-500.0,0.00019452,3]
[347379177,1735746655942,-500.0,0.00019452,3]
[347379178,1735746655951,-1711.6,0.00019452,3]
[347379179,1735746655961,-852.585096,0.00019452,2]
[347379180,1735746655970,-500.0,0.00019452,3]
[347379181,1735746655979,-500.0,0.00019452,3]
[347379182,1735746655988,-726.63,0.00019452,3]
[347379183,1735746655997,-852.585096,0.00019452,2]
[347379184,1735746656007,-500.0,0.00019452,3]
[347379185,1735746656017,-500.0,0.00019452,3]
[347379186,1735746656026,-502.50044003,0.00019452,3]
[347379187,1735746656036,-500.0,0.00019452,3]
[347379188,1735746656045,-500.0,0.00019452,3]
[347379189,1735746656055,-158.54346887,0.00019452,3]
[347379190,1735746656064,-500.0,0.00019452,3]
[347379191,1735746656073,-500.0,0.00019452,3]
[347379192,1735746656085,-500.0,0.00019452,3]
[347379193,1735746656094,-500.0,0.00019452,3]
[347379194,1735746656103,-509.570224,0.00019452,3]
[347379195,1735746656114,-500.0,0.00019452,3]
[347379196,1735746656123,-233.52796432,0.00019452,3]
[347379197,1735746656134,-500.0,0.00019452,3]
[347379198,1735746656143,-500.0,0.00019452,3]
[347379199,1735746656152,-500.0,0.00019452,3]
[347379200,1735746656162,-500.0,0.00019452,3]
[347379201,1735746656171,-500.0,0.00019452,3]
[347379202,1735746656181,-500.0,0.00019452,3]
[347379203,1735746656190,-500.0,0.00019452,3]
[347379204,1735746656199,-500.0,0.00019452,3]
[347379205,1735746656208,-500.0,0.00019452,3]
[347379206,1735746656217,-500.0,0.00019452,3]
[347379207,1735746656227,-500.0,0.00019452,3]
[347379208,1735746656236,-505.32890224,0.00019452,3]
[347379209,1735746656245,-1498.12,0.00019452,3]
[347379210,1735746656254,-500.0,0.00019452,3]
[347379211,1735746656264,-500.0,0.00019452,3]
[347379212,1735746656273,-500.0,0.00019452,3]
[347379213,1735746656282,-836.09,0.00019452,3]
[347379214,1735746656291,-500.0,0.00019452,3]
[347379215,1735746656301,-500.0,0.00019452,3]
[347379216,1735746656311,-500.0,0.00019452,3]
[347379217,1735746656320,-500.0,0.00019452,3]
[347379218,1735746656329,-151.0,0.00019452,2]
[347379219,1735746656339,-284.133479,0.00019452,2]
[347379220,1735746656348,-1019.71,0.00019452,3]
[347379221,1735746656357,-284.133479,0.00019452,2]
[347379222,1735746656367,-504.83426407,0.00019452,3]
[347379223,1735746656376,-500.0,0.00019452,3]
[347379224,1735746656385,-501.85536329,0.00019452,3]
[347379225,1735746656394,-500.0,0.00019452,3]
[347379226,1735746656404,-508.79763532,0.00019452,3]
[347379227,1735746656414,-375.703777,0.00019452,2]
[347379228,1735746656425,-502.50603078,0.00019452,3]
[347379229,1735746656525,-529.45,0.00019452,3]
[347379230,1735746656535,-628.11,0.00019452,3]
[347379231,1735746656545,-375.703777,0.00019452,2]
[347379232,1735746656555,-503.58612717,0.00019452,3]
[347379233,1735746656564,-615.48952965,0.00019452,3]
[347379234,1735746656573,-500.0,0.00019452,3]
[347379235,1735746656583,-622.94,0.00019452,3]
[347379236,1735746656592,-500.0,0.00019452,3]
[347379237,1735746656601,-500.0,0.00019452,3]
[347379238,1735746656610,-500.0,0.00019452,3]
[347379239,1735746656619,-500.0,0.00019452,3]
[347379240,1735746656628,-500.0,0.00019452,3]
[347379241,1735746656637,-500.0,0.00019452,3]
[347379242,1735746656647,-500.0,0.00019452,3]
[347379243,1735746656655,-500.0,0.00019452,3]
[347379244,1735746656665,-500.0,0.00019452,3]
[347379245,1735746656676,-534.22328131,0.00019452,3]
[347379246,1735746656685,-995.6,0.00019452,3]
[347379247,1735746656694,-500.0,0.00019452,3]
[347379248,1735746656703,-500.0,0.00019452,3]
[347379249,1735746656712,-500.0,0.00019452,3]
[347379250,1735746656722,-607.38771698,0.00019452,3]
[347379251,1735746656731,-500.0,0.00019452,3]
[347379252,1735746656740,-636.306024,0.00019452,2]
[347379253,1735746656749,-570.66,0.00019452,3]
[347379254,1735746656759,-636.306024,0.00019452,2]
[347379255,1735746656768,-2361.36,0.00019452,3]
[347379256,1735746656777,-10249.72,0.00019452,3]
[347379257,1735746656786,-500.58419998,0.00019452,3]
[347379258,1735746656796,-502.74282386,0.00019452,3]
[347379259,1735746656805,-1884.25,0.00019452,3]
[347379260,1735746656814,-1167.67,0.00019452,3]
[347379261,1735746656823,-500.0,0.00019452,3]
[347379262,1735746656832,-500.0,0.00019452,3]
[347379263,1735746656842,-500.0,0.00019452,3]
[347379264,1735746656851,-500.0,0.00019452,3]
[347379265,1735746656860,-500.0,0.00019452,3]
[347379266,1735746656869,-151.0,0.00019452,2]
[347379267,1735746656879,-500.0,0.00019452,3]
[347379268,1735746656888,-500.0,0.00019452,3]
[347379269,1735746656896,-500.0,0.00019452,3]
[347379270,1735746656906,-500.0,0.00019452,3]
[347379271,1735746656915,-500.0,0.00019452,3]
[347379272,1735746656926,-500.0,0.00019452,3]
[347379273,1735746656935,-500.0,0.00019452,3]
[347379274,1735746656944,-533.76,0.00019452,3]
[347379275,1735746656954,-500.0,0.00019452,3]
[347379276,1735746656963,-500.0,0.00019452,3]
[347379277,1735746656972,-500.0,0.00019452,3]
[347379278,1735746656981,-500.0,0.00019452,3]
[347379279,1735746656990,-2046.74,0.00019452,3]
[347379280,1735746656999,-500.0,0.00019452,3]
[347379281,1735746657008,-1698.09,0.00019452,3]
[347379282,1735746657017,-500.0,0.00019452,3]
[347379283,1735746657026,-979.04,0.00019452,3]
[347379284,1735746657035,-500.0,0.00019452,3]
[347379285,1735746657045,-500.0,0.00019452,3]
[347379286,1735746657055,-500.0,0.00019452,3]
[347379287,1735746657064,-500.19511415,0.00019452,3]
[347379288,1735746657073,-1956.36,0.00019452,3]
[347379289,1735746657085,-500.0,0.00019452,3]
[347379290,1735746657094,-500.0,0.00019452,3]
[347379291,1735746657104,-500.0,0.00019452,3]
[347379292,1735746657114,-248.89287464,0.00019452,3]
[347379293,1735746657124,-500.0,0.00019452,3]
[347379294,1735746657134,-500.0,0.00019452,3]
[347379295,1735746657144,-500.0,0.00019452,3]
[347379296,1735746657153,-500.0,0.00019452,3]
[347379297,1735746657164,-500.0,0.00019452,3]
[347379298,1735746657174,-1102.92,0.00019452,3]
[347379299,1735746657183,-544.72432835,0.00019452,3]
[347379300,1735746657192,-1072.3,0.00019452,3]
[347379301,1735746657201,-1223.71,0.00019452,3]
[347379302,1735746657210,-500.0,0.00019452,3]
[347379303,1735746657219,-500.0,0.00019452,3]
[347379304,1735746657228,-502.8444591,0.00019452,3]
[347379305,1735746657237,-500.0,0.00019452,3]
[347379306,1735746657247,-1155.3,0.00019452,3]
[347379307,1735746657256,-500.0,0.00019452,3]
[347379308,1735746657266,-1590.48,0.00019452,3]
[347379309,1735746657275,-500.0,0.00019452,3]
[347379310,1735746657284,-500.0,0.00019452,3]
[347379311,1735746657293,-500.0,0.00019452,3]
[347379312,1735746657302,-500.0,0.00019452,3]
[347379313,1735746657311,-848.69,0.00019452,3]
[347379314,1735746657321,-500.0,0.00019452,3]
[347379315,1735746657330,-500.96620685,0.00019452,3]
[347379316,1735746657339,-500.0,0.00019452,3]
[347379317,1735746657348,-2256.32,0.00019452,3]
[347379318,1735746657358,-500.0,0.00019452,3]
[347379319,1735746657367,-1210.07,0.00019452,3]
[347379320,1735746657377,-500.0,0.00019452,3]
[347379321,1735746657386,-1129.54,0.00019452,3]
[347379322,1735746657395,-511.10892591,0.00019452,3]
[347379323,1735746657405,-150.71352695,0.00019452,3]
[347379324,1735746657414,-500.0,0.00019452,3]
[347379325,1735746657424,-500.0,0.00019452,3]
[347379326,1735746657434,-500.0,0.00019452,3]
[347379327,1735746657444,-1104.02,0.00019452,3]
[347379328,1735746657453,-500.0,0.00019452,3]
[347379329,1735746657462,-500.0,0.00019452,3]
[347379330,1735746657471,-503.77800745,0.00019452,3]
[347379331,1735746657480,-1892.84,0.00019452,3]
[347379332,1735746657489,-500.0,0.00019452,3]
[347379333,1735746657500,-500.0,0.00019452,3]
[347379334,1735746657511,-500.0,0.00019452,3]
[347379335,1735746657521,-500.61588159,0.00019452,3]
[347379336,1735746657532,-500.0,0.00019452,3]
[347379337,1735746657542,-616.68690121,0.00019452,3]
[347379338,1735746657555,-1344.31,0.00019452,3]
[347379339,1735746657565,-547.01,0.00019452,3]
[347379340,1735746657574,-984.01,0.00019452,3]
[347379341,1735746657583,-500.0,0.00019452,3]
[347379342,1735746657593,-613.99,0.00019452,3]
[347379343,1735746657602,-500.0,0.00019452,3]
[347379344,1735746657611,-500.0,0.00019452,3]
[347379345,1735746657621,-158.07068626,0.00019452,3]
[347379346,1735746657630,-500.0,0.00019452,3]
[347379347,1735746657639,-1040.05,0.00019452,3]
[347379348,1735746657648,-503.10275094,0.00019452,3]
[347379349,1735746657658,-1084.88,0.00019452,3]
[347379350,1735746657667,-500.0,0.00019452,3]
[347379351,1735746657680,-503.10648188,0.00019452,3]
[347379352,1735746657689,-500.0,0.00019452,3]
[347379353,1735746657698,-500.0,0.00019452,3]
[347379354,1735746657707,-500.0,0.00019452,3]
[347379355,1735746657716,-770.94,0.00019452,3]
[347379356,1735746657726,-500.0,0.00019452,3]
[347379357,1735746657735,-500.0,0.00019452,3]
[347379358,1735746657744,-1353.9,0.00019452,3]
[347379359,1735746657753,-500.0,0.00019452,3]
[347379360,1735746657763,-500.583539,0.00019452,3]
[347379361,1735746657773,-500.78294876,0.00019452,3]
[347379362,1735746657782,-500.0,0.00019452,3]
[347379363,1735746657791,-500.0,0.00019452,3]
[347379364,1735746657800,-1210.23,0.00019452,3]
[347379365,1735746657810,-500.0,0.00019452,3]
[347379366,1735746657819,-500.0,0.00019452,3]
[347379367,1735746657828,-500.0,0.00019452,3]
[347379368,1735746657837,-520.9,0.00019452,3]
[347379369,1735746657846,-500.0,0.00019452,3]
[347379370,1735746657855,-500.0,0.00019452,3]
[347379371,1735746657864,-500.0,0.00019452,3]
[347379372,1735746657874,-500.0,0.00019452,3]
[347379373,1735746657883,-3651.28,0.00019452,3]
[347379374,1735746657893,-500.0,0.00019452,3]
[347379375,1735746657902,-500.0,0.00019452,3]
[347379376,1735746657911,-502.87092684,0.00019452,3]
[347379377,1735746657922,-500.0,0.00019452,3]
[347379378,1735746657931,-500.0,0.00019452,3]
[347379379,1735746657940,-536.08,0.00019452,3]
[347379380,1735746657949,-500.0,0.00019452,3]
[347379381,1735746657959,-500.0,0.00019452,3]
[347379382,1735746657968,-500.0,0.00019452,3]
[347379383,1735746657978,-957.67,0.00019452,3]
[347379384,1735746657987,-500.0,0.00019452,3]
[347379385,1735746657996,-500.0,0.00019452,3]
[347379386,1735746658005,-500.0,0.00019452,3]
[347379387,1735746658015,-1334.32,0.00019452,3]
[347379388,1735746658024,-6890.07,0.00019452,3]
[347379389,1735746658033,-500.0,0.00019452,3]
[347379390,1735746658043,-574.66,0.00019452,3]
[347379391,1735746658052,-500.0,0.00019452,3]
[347379392,1735746658061,-1000.0,0.00019452,2]
[347379393,1735746658071,-502.09461345,0.00019452,3]
[347379394,1735746658080,-242.50418083,0.00019452,3]
[347379395,1735746658092,-901.33,0.00019452,3]
[347379396,1735746658186,-1599.93,0.00019452,3]
[347379397,1735746658197,-669.04,0.00019452,3]
[347379398,1735746658206,-521.73283705,0.00019452,3]
[347379399,1735746658215,-500.0,0.00019452,3]
[347379400,1735746658224,-500.0,0.00019452,3]
[347379401,1735746658234,-500.0,0.00019452,3]
[347379402,1735746658243,-523.68,0.00019452,3]
[347379403,1735746658252,-502.28281608,0.00019452,3]
[347379404,1735746658261,-500.0,0.00019452,3]
[347379405,1735746658270,-500.0,0.00019452,3]
[347379406,1735746658279,-500.0,0.00019452,3]
[347379407,1735746658289,-500.0,0.00019452,3]
[347379408,1735746658298,-500.0,0.00019452,3]
[347379409,1735746658307,-500.0,0.00019452,3]
[347379410,1735746658316,-500.0,0.00019452,3]
[347379411,1735746658325,-500.0,0.00019452,3]
[347379412,1735746658334,-500.0,0.00019452,3]
[347379413,1735746658343,-500.0,0.00019452,3]
[347379414,1735746658352,-508.75660073,0.00019452,3]
[347379415,1735746658362,-500.0,0.00019452,3]
[347379416,1735746658371,-49607.01,0.00019452,3]
[347379417,1735746658380,-649.5,0.00019452,3]
[347379418,1735746658389,-500.0,0.00019452,3]
[347379419,1735746658399,-502.06540952,0.00019452,3]
[347379420,1735746658408,-500.0,0.00019452,3]
[347379421,1735746658417,-2047.95,0.00019452,3]
[347379422,1735746658428,-503.12449687,0.00019452,3]
[347379423,1735746658437,-503.81086254,0.00019452,3]
[347379424,1735746658447,-500.0,0.00019452,3]
[347379425,1735746658457,-561.58,0.00019452,3]
[347379426,1735746658466,-502.48608153,0.00019452,3]
[347379427,1735746658476,-500.0,0.00019452,3]
[347379428,1735746658485,-1323.3,0.00019452,3]
[347379429,1735746658494,-500.0,0.00019452,3]
[347379430,1735746658503,-500.0,0.00019452,3]
[347379431,1735746658512,-501.95935285,0.00019452,3]
[347379432,1735746658521,-500.0,0.00019452,3]
[347379433,1735746658530,-500.0,0.00019452,3]
[347379434,1735746658539,-500.0,0.00019452,3]
[347379435,1735746658549,-2756.0,0.00019452,3]
[347379436,1735746658558,-740.52,0.00019452,3]
[347379437,1735746658568,-500.0,0.00019452,3]
[347379438,1735746658578,-500.0,0.00019452,3]
[347379439,1735746658588,-500.0,0.00019452,3]
[347379440,1735746658598,-500.0,0.00019452,3]
[347379441,1735746658607,-500.0,0.00019452,3]
[347379442,1735746658616,-500.0,0.00019452,3]
[347379443,1735746658626,-612.96,0.00019452,3]
[347379444,1735746658635,-500.0,0.00019452,3]
[347379445,1735746658644,-1695.55,0.00019452,3]
[347379446,1735746658653,-500.0,0.00019452,3]
[347379447,1735746658663,-500.0,0.00019452,3]
[347379448,1735746658674,-500.0,0.00019452,3]
[347379449,1735746658683,-500.0,0.00019452,3]
[347379450,1735746658692,-500.0,0.00019452,3]
[347379451,1735746658701,-500.0,0.00019452,3]
[347379452,1735746658711,-512.81215335,0.00019452,3]